[Event "*** Titled Tuesday Blitz"]
[Site "Chess.com"]
[Date "2020.10.27"]
[Round "7"]
[White "Natalya_Buksa"]
[Black "geordie_derraugh"]
[Result "1-0"]
[WhiteElo "2546"]
[BlackElo "2410"]
[TimeControl "180+1"]
[EndTime "11:20:01 PDT"]
[Termination "Natalya_Buksa won by checkmate"]

1. d4 {[%clk 0:03:00.9]} 1... Nf6 {[%clk 0:02:59.9]} 2. Nc3 {[%clk 0:03:00.4]}
2... d5 {[%clk 0:02:58.3]} 3. Bf4 {[%clk 0:03:00]} 3... c6 {[%clk 0:02:57.5]} 4.
e3 {[%clk 0:03:00]} 4... g6 {[%clk 0:02:57.6]} 5. h4 {[%clk 0:02:59.5]} 5... h5
{[%clk 0:02:57.3]} 6. Nf3 {[%clk 0:02:59.1]} 6... Bg7 {[%clk 0:02:56.9]} 7. Ne5
{[%clk 0:02:59.5]} 7... Qb6 {[%clk 0:02:53.6]} 8. Rb1 {[%clk 0:02:56.8]} 8...
Bf5 {[%clk 0:02:51.6]} 9. Be2 {[%clk 0:02:55]} 9... Nbd7 {[%clk 0:02:48.3]} 10.
f3 {[%clk 0:02:55.4]} 10... Nxe5 {[%clk 0:02:42.7]} 11. Bxe5 {[%clk 0:02:56.3]}
11... Kf8 {[%clk 0:02:38.1]} 12. Bd3 {[%clk 0:02:10.5]} 12... Be6 {[%clk
0:02:28.1]} 13. Qe2 {[%clk 0:02:07.2]} 13... Nd7 {[%clk 0:02:26.9]} 14. Bxg7+
{[%clk 0:02:06.2]} 14... Kxg7 {[%clk 0:02:27.8]} 15. O-O {[%clk 0:01:55.6]}
15... Nf6 {[%clk 0:02:11.7]} 16. Qf2 {[%clk 0:01:46.1]} 16... Rad8 {[%clk
0:02:08.3]} 17. a3 {[%clk 0:01:38.7]} 17... Rhe8 {[%clk 0:02:06.3]} 18. b4
{[%clk 0:01:36.3]} 18... Bc8 {[%clk 0:02:05.8]} 19. f4 {[%clk 0:01:25.6]} 19...
Ng4 {[%clk 0:02:01.7]} 20. Qg3 {[%clk 0:01:25.7]} 20... Qc7 {[%clk 0:01:56.5]}
21. Be2 {[%clk 0:01:24.5]} 21... Nf6 {[%clk 0:01:38.8]} 22. Bf3 {[%clk
0:01:23.2]} 22... Bf5 {[%clk 0:01:37.7]} 23. Qf2 {[%clk 0:01:22.8]} 23... Ng4
{[%clk 0:01:13.1]} 24. Qe2 {[%clk 0:01:20.6]} 24... f6 {[%clk 0:01:08.1]} 25.
Bxg4 {[%clk 0:00:48.1]} 25... hxg4 {[%clk 0:00:52.1]} 26. g3 {[%clk 0:00:29.6]}
26... e5 {[%clk 0:00:50.2]} 27. Qd2 {[%clk 0:00:30.1]} 27... exd4 {[%clk
0:00:36.7]} 28. exd4 {[%clk 0:00:31]} 28... Be4 {[%clk 0:00:32.5]} 29. Rbe1
{[%clk 0:00:29.1]} 29... Bf3 {[%clk 0:00:15.9]} 30. Na4 {[%clk 0:00:22.6]} 30...
b6 {[%clk 0:00:14.7]} 31. Nb2 {[%clk 0:00:21.9]} 31... Kf7 {[%clk 0:00:14.3]}
32. Nd3 {[%clk 0:00:21.6]} 32... Re4 {[%clk 0:00:14.3]} 33. Nf2 {[%clk
0:00:20.9]} 33... Qd6 {[%clk 0:00:11.7]} 34. Nxe4 {[%clk 0:00:20.5]} 34... dxe4
{[%clk 0:00:12]} 35. c3 {[%clk 0:00:16.6]} 35... c5 {[%clk 0:00:12.3]} 36. bxc5
{[%clk 0:00:16.3]} 36... bxc5 {[%clk 0:00:12.4]} 37. Rb1 {[%clk 0:00:16.3]}
37... cxd4 {[%clk 0:00:11.7]} 38. Qa2+ {[%clk 0:00:12]} 38... Kg7 {[%clk
0:00:10.6]} 39. Rb7+ {[%clk 0:00:08.8]} 39... Rd7 {[%clk 0:00:10.5]} 40. Rxd7+
{[%clk 0:00:08.1]} 40... Qxd7 {[%clk 0:00:11.4]} 41. Qd2 {[%clk 0:00:05.8]}
41... d3 {[%clk 0:00:09.2]} 42. Kh2 {[%clk 0:00:04.4]} 42... Qc6 {[%clk
0:00:08.7]} 43. Re1 {[%clk 0:00:04.5]} 43... Qc5 {[%clk 0:00:08.4]} 44. Re3
{[%clk 0:00:04.4]} 44... f5 {[%clk 0:00:07.4]} 45. a4 {[%clk 0:00:02.8]} 45...
Qa3 {[%clk 0:00:07.5]} 46. a5 {[%clk 0:00:02.6]} 46... Qxa5 {[%clk 0:00:07.6]}
47. Re1 {[%clk 0:00:02.5]} 47... Qc5 {[%clk 0:00:07.6]} 48. Rb1 {[%clk
0:00:01.6]} 48... Be2 {[%clk 0:00:07.6]} 49. Rb2 {[%clk 0:00:01.9]} 49... e3
{[%clk 0:00:07.3]} 50. Qe1 {[%clk 0:00:01.4]} 50... Qd5 {[%clk 0:00:07.3]} 51.
c4 {[%clk 0:00:01.7]} 51... Qxc4 {[%clk 0:00:06.9]} 52. Qa1 {[%clk 0:00:01.7]}
52... Kh6 {[%clk 0:00:06.1]} 53. Rb7 {[%clk 0:00:02.2]} 53... Qg8 {[%clk
0:00:03.6]} 54. Rxa7 {[%clk 0:00:02.4]} 54... d2 {[%clk 0:00:04]} 55. Qf6 {[%clk
0:00:02.4]} 55... Qd8 {[%clk 0:00:01.2]} 56. Qxd8 {[%clk 0:00:02.3]} 56... Kh5
{[%clk 0:00:01.4]} 57. Qh8# {[%clk 0:00:02.7]} 1-0

[Event "*** Titled Tuesday Blitz"]
[Site "Chess.com"]
[Date "2020.10.27"]
[Round "7"]
[White "svilson23"]
[Black "Kaliopa"]
[Result "1-0"]
[WhiteElo "2381"]
[BlackElo "2216"]
[TimeControl "180+1"]
[EndTime "11:20:02 PDT"]
[Termination "svilson23 won on time"]

1. e4 {[%clk 0:02:44.3]} 1... c5 {[%clk 0:02:58.2]} 2. Nf3 {[%clk 0:02:43.5]}
2... d6 {[%clk 0:02:57.2]} 3. Bb5+ {[%clk 0:02:42.5]} 3... Nd7 {[%clk
0:02:56.5]} 4. c3 {[%clk 0:02:35.3]} 4... a6 {[%clk 0:02:52.8]} 5. Ba4 {[%clk
0:02:34.7]} 5... b5 {[%clk 0:02:43.7]} 6. Bc2 {[%clk 0:02:32.6]} 6... Bb7 {[%clk
0:02:39]} 7. O-O {[%clk 0:02:32.7]} 7... g6 {[%clk 0:02:38]} 8. Qe2 {[%clk
0:02:26.3]} 8... Bg7 {[%clk 0:02:37.2]} 9. d4 {[%clk 0:02:26.2]} 9... Qc7 {[%clk
0:02:19.4]} 10. Bg5 {[%clk 0:02:16.9]} 10... Rc8 {[%clk 0:02:15.8]} 11. Rc1
{[%clk 0:02:01.6]} 11... h6 {[%clk 0:02:06.2]} 12. Be3 {[%clk 0:01:57.5]} 12...
Ngf6 {[%clk 0:02:05.7]} 13. Nbd2 {[%clk 0:01:52]} 13... O-O {[%clk 0:02:03.5]}
14. a4 {[%clk 0:01:49.6]} 14... c4 {[%clk 0:01:15.2]} 15. h3 {[%clk 0:01:50.1]}
15... Nb6 {[%clk 0:01:04.5]} 16. axb5 {[%clk 0:01:47.3]} 16... axb5 {[%clk
0:01:04.3]} 17. Ra5 {[%clk 0:01:46.1]} 17... Bc6 {[%clk 0:01:01]} 18. d5 {[%clk
0:01:43]} 18... Bd7 {[%clk 0:01:01.1]} 19. Ra6 {[%clk 0:01:40]} 19... Rb8 {[%clk
0:01:00.4]} 20. Rca1 {[%clk 0:01:29.5]} 20... Bc8 {[%clk 0:00:59.4]} 21. Ra7
{[%clk 0:01:28.2]} 21... Rb7 {[%clk 0:00:57.5]} 22. R7a5 {[%clk 0:01:24.2]}
22... Bd7 {[%clk 0:00:55.7]} 23. Nd4 {[%clk 0:01:23.7]} 23... Na4 {[%clk
0:00:51.1]} 24. Ra6 {[%clk 0:00:34.7]} 24... Nxb2 {[%clk 0:00:50.7]} 25. f4
{[%clk 0:00:28.1]} 25... b4 {[%clk 0:00:31.5]} 26. cxb4 {[%clk 0:00:25.5]} 26...
Rxb4 {[%clk 0:00:31.6]} 27. Ra7 {[%clk 0:00:24.2]} 27... Rb7 {[%clk 0:00:30.5]}
28. Rxb7 {[%clk 0:00:23.3]} 28... Qxb7 {[%clk 0:00:31.4]} 29. Nxc4 {[%clk
0:00:23.3]} 29... Nxc4 {[%clk 0:00:30.9]} 30. Qxc4 {[%clk 0:00:23.3]} 30... Rc8
{[%clk 0:00:31.2]} 31. Qd3 {[%clk 0:00:23.2]} 31... Qc7 {[%clk 0:00:26.5]} 32.
Rc1 {[%clk 0:00:22.5]} 32... Qc3 {[%clk 0:00:25.1]} 33. Kf2 {[%clk 0:00:15.9]}
33... Qxd3 {[%clk 0:00:22.9]} 34. Bxd3 {[%clk 0:00:16.1]} 34... Rxc1 {[%clk
0:00:23.8]} 35. Bxc1 {[%clk 0:00:16.3]} 35... Kf8 {[%clk 0:00:19.8]} 36. Nc6
{[%clk 0:00:11.8]} 36... Ne8 {[%clk 0:00:15.3]} 37. Kf3 {[%clk 0:00:11.4]} 37...
Nc7 {[%clk 0:00:14.1]} 38. Be3 {[%clk 0:00:11.1]} 38... e6 {[%clk 0:00:07.3]}
39. Bb6 {[%clk 0:00:11.1]} 39... Ne8 {[%clk 0:00:06.9]} 40. Bc4 {[%clk
0:00:09.5]} 40... exd5 {[%clk 0:00:06.6]} 41. exd5 {[%clk 0:00:08.8]} 41... Bf6
{[%clk 0:00:06.2]} 42. Nb8 {[%clk 0:00:08.9]} 42... Kg7 {[%clk 0:00:04.9]} 43.
Nxd7 {[%clk 0:00:08.2]} 43... Bb2 {[%clk 0:00:04.3]} 44. Nb8 {[%clk 0:00:07.4]}
44... Bf6 {[%clk 0:00:03]} 45. Nc6 {[%clk 0:00:07.9]} 45... Bc3 {[%clk
0:00:02.9]} 46. Bd4+ {[%clk 0:00:08.5]} 46... Bxd4 {[%clk 0:00:03]} 47. Nxd4
{[%clk 0:00:09.1]} 47... Nf6 {[%clk 0:00:03.5]} 48. Nb5 {[%clk 0:00:09.2]} 48...
Ne8 {[%clk 0:00:02.7]} 49. g4 {[%clk 0:00:09.3]} 49... Kf6 {[%clk 0:00:02.9]}
50. Ke4 {[%clk 0:00:09.5]} 50... Ke7 {[%clk 0:00:03]} 51. Bd3 {[%clk 0:00:09.3]}
51... Nf6+ {[%clk 0:00:03]} 52. Kd4 {[%clk 0:00:09.4]} 52... Nd7 {[%clk
0:00:02.7]} 53. Nc3 {[%clk 0:00:09.2]} 53... Nc5 {[%clk 0:00:02.2]} 54. Ne4
{[%clk 0:00:09.8]} 54... Nd7 {[%clk 0:00:01.7]} 55. Bb5 {[%clk 0:00:08.5]} 55...
Nb6 {[%clk 0:00:01.2]} 56. Bc6 {[%clk 0:00:08.2]} 1-0

[Event "*** Titled Tuesday Blitz"]
[Site "Chess.com"]
[Date "2020.10.27"]
[Round "7"]
[White "Khnykin_Nikolay"]
[Black "krasavetc"]
[Result "0-1"]
[WhiteElo "2069"]
[BlackElo "2292"]
[TimeControl "180+1"]
[EndTime "11:20:03 PDT"]
[Termination "krasavetc won by checkmate"]

1. e4 {[%clk 0:03:00.9]} 1... e6 {[%clk 0:03:00.9]} 2. Nf3 {[%clk 0:02:58.8]}
2... d5 {[%clk 0:02:57.3]} 3. exd5 {[%clk 0:02:56.1]} 3... exd5 {[%clk
0:02:56.8]} 4. d4 {[%clk 0:02:57]} 4... Nf6 {[%clk 0:02:57.7]} 5. c4 {[%clk
0:02:55.9]} 5... Be7 {[%clk 0:02:58.6]} 6. Nc3 {[%clk 0:02:55]} 6... dxc4 {[%clk
0:02:54.3]} 7. Bxc4 {[%clk 0:02:53.8]} 7... O-O {[%clk 0:02:47.2]} 8. O-O {[%clk
0:02:51.9]} 8... c6 {[%clk 0:02:42.7]} 9. Re1 {[%clk 0:02:50.1]} 9... b5 {[%clk
0:02:35.8]} 10. Bb3 {[%clk 0:02:48.4]} 10... Bg4 {[%clk 0:02:29.6]} 11. h3
{[%clk 0:02:45.9]} 11... Bh5 {[%clk 0:02:18.1]} 12. Re5 {[%clk 0:02:42.5]} 12...
Nbd7 {[%clk 0:02:16.6]} 13. Rxh5 {[%clk 0:02:39.4]} 13... Nxh5 {[%clk
0:02:12.8]} 14. Be3 {[%clk 0:02:34.6]} 14... Nhf6 {[%clk 0:02:08.7]} 15. Ng5
{[%clk 0:02:33.8]} 15... Nd5 {[%clk 0:02:06.3]} 16. Nxd5 {[%clk 0:02:30.3]}
16... Bxg5 {[%clk 0:02:04.5]} 17. Bxg5 {[%clk 0:02:23.7]} 17... Qxg5 {[%clk
0:01:59.1]} 18. Ne3 {[%clk 0:02:23.3]} 18... Nf6 {[%clk 0:01:52.4]} 19. Qf3
{[%clk 0:02:20.8]} 19... Rad8 {[%clk 0:01:47.2]} 20. Rd1 {[%clk 0:02:17.2]}
20... c5 {[%clk 0:01:18.4]} 21. d5 {[%clk 0:02:07.6]} 21... c4 {[%clk
0:01:15.3]} 22. Bc2 {[%clk 0:02:06.5]} 22... Nxd5 {[%clk 0:01:13.5]} 23. Nxd5
{[%clk 0:02:05.7]} 23... Rfe8 {[%clk 0:01:07.2]} 24. Ne3 {[%clk 0:01:49.9]}
24... Rxd1+ {[%clk 0:01:04.8]} 25. Qxd1 {[%clk 0:01:48.6]} 25... g6 {[%clk
0:00:59.7]} 26. Qd7 {[%clk 0:01:47.4]} 26... Rxe3 {[%clk 0:00:45.3]} 27. fxe3
{[%clk 0:01:30.6]} 27... Qxe3+ {[%clk 0:00:46.2]} 28. Kh2 {[%clk 0:01:27.2]}
28... Qe5+ {[%clk 0:00:45.4]} 29. Kg1 {[%clk 0:01:26]} 29... Qxb2 {[%clk
0:00:43.9]} 30. Qxa7 {[%clk 0:00:58.8]} 30... Qxc2 {[%clk 0:00:33.5]} 31. Qb8+
{[%clk 0:00:58]} 31... Kg7 {[%clk 0:00:28.2]} 32. Qe5+ {[%clk 0:00:57.7]} 32...
Kh6 {[%clk 0:00:22.5]} 33. Qf4+ {[%clk 0:00:56.8]} 33... g5 {[%clk 0:00:18.8]}
34. Qf6+ {[%clk 0:00:56]} 34... Qg6 {[%clk 0:00:18.9]} 35. Qb2 {[%clk
0:00:32.2]} 35... Qb6+ {[%clk 0:00:15.4]} 36. Kh1 {[%clk 0:00:31.1]} 36... Qd6
{[%clk 0:00:16.3]} 37. Qxb5 {[%clk 0:00:25.6]} 37... c3 {[%clk 0:00:14.7]} 38.
Qc4 {[%clk 0:00:17.6]} 38... Qd1+ {[%clk 0:00:11.4]} 39. Kh2 {[%clk 0:00:16.8]}
39... c2 {[%clk 0:00:11.5]} 40. Qc6+ {[%clk 0:00:15.8]} 40... Kg7 {[%clk
0:00:10.1]} 41. Qc3+ {[%clk 0:00:15.4]} 41... f6 {[%clk 0:00:08.3]} 42. Qc7+
{[%clk 0:00:15]} 42... Kg6 {[%clk 0:00:08.7]} 43. Qe7 {[%clk 0:00:11.8]} 43...
c1=Q {[%clk 0:00:06.7]} 44. Qe8+ {[%clk 0:00:11.9]} 44... Kf5 {[%clk 0:00:05.3]}
45. g4+ {[%clk 0:00:11.6]} 45... Kf4 {[%clk 0:00:04.7]} 46. Qb8+ {[%clk
0:00:11.3]} 46... Ke3 {[%clk 0:00:04.2]} 47. Qg3+ {[%clk 0:00:10.7]} 47... Kd2
{[%clk 0:00:04.4]} 48. Qd6+ {[%clk 0:00:10.2]} 48... Kc3 {[%clk 0:00:05.3]} 49.
Qc5+ {[%clk 0:00:10.1]} 49... Kb2 {[%clk 0:00:05.7]} 50. Qb4+ {[%clk 0:00:09.8]}
50... Ka1 {[%clk 0:00:06.6]} 51. Qe7 {[%clk 0:00:07.1]} 51... Qb2+ {[%clk
0:00:07.5]} 52. Kg3 {[%clk 0:00:05.9]} 52... Qg1+ {[%clk 0:00:08.4]} 53. Kf3
{[%clk 0:00:05.7]} 53... Qgf2+ {[%clk 0:00:07.9]} 54. Ke4 {[%clk 0:00:05.3]}
54... Qfe2+ {[%clk 0:00:08.8]} 55. Kd5 {[%clk 0:00:05.5]} 55... Qxe7 {[%clk
0:00:09.2]} 56. Kc4 {[%clk 0:00:05.4]} 56... Qee5 {[%clk 0:00:08.4]} 57. h4
{[%clk 0:00:06]} 57... Qed4# {[%clk 0:00:07.1]} 0-1

[Event "*** Titled Tuesday Blitz"]
[Site "Chess.com"]
[Date "2020.10.27"]
[Round "7"]
[White "Msb2"]
[Black "Funo09"]
[Result "0-1"]
[WhiteElo "2908"]
[BlackElo "2811"]
[TimeControl "180+1"]
[EndTime "11:20:04 PDT"]
[Termination "Funo09 won by checkmate"]

1. d4 {[%clk 0:03:00.9]} 1... Nf6 {[%clk 0:02:59.9]} 2. Nf3 {[%clk 0:03:00.6]}
2... g6 {[%clk 0:02:59.9]} 3. Nc3 {[%clk 0:03:01]} 3... d5 {[%clk 0:02:59.5]} 4.
Bf4 {[%clk 0:03:01.2]} 4... Bg7 {[%clk 0:02:59.8]} 5. Nb5 {[%clk 0:03:01.7]}
5... Na6 {[%clk 0:02:59.3]} 6. e3 {[%clk 0:03:02.1]} 6... O-O {[%clk 0:02:59.1]}
7. h3 {[%clk 0:03:02.5]} 7... c6 {[%clk 0:02:59.4]} 8. Nc3 {[%clk 0:03:01.5]}
8... Nc7 {[%clk 0:02:59.4]} 9. Bd3 {[%clk 0:02:57.2]} 9... a5 {[%clk 0:02:55.8]}
10. a4 {[%clk 0:02:56.7]} 10... Na6 {[%clk 0:02:55.5]} 11. O-O {[%clk
0:02:53.2]} 11... Nb4 {[%clk 0:02:55.4]} 12. Be2 {[%clk 0:02:52.9]} 12... Bf5
{[%clk 0:02:55.2]} 13. Ne1 {[%clk 0:02:48.9]} 13... Re8 {[%clk 0:02:52.6]} 14.
Nb1 {[%clk 0:02:40.9]} 14... Qb6 {[%clk 0:02:44]} 15. Nd2 {[%clk 0:02:32.3]}
15... Nd7 {[%clk 0:02:37.6]} 16. c3 {[%clk 0:02:23.6]} 16... Na6 {[%clk
0:02:37.8]} 17. Qb3 {[%clk 0:02:24.2]} 17... Qa7 {[%clk 0:02:36.3]} 18. g4
{[%clk 0:02:00.1]} 18... e5 {[%clk 0:01:46.7]} 19. dxe5 {[%clk 0:01:58.5]} 19...
Be6 {[%clk 0:01:39.7]} 20. Nef3 {[%clk 0:01:57.9]} 20... d4 {[%clk 0:01:35.3]}
21. Bc4 {[%clk 0:01:57.2]} 21... Nac5 {[%clk 0:01:31.4]} 22. Qa2 {[%clk
0:01:49.6]} 22... dxe3 {[%clk 0:01:07.8]} 23. fxe3 {[%clk 0:01:32.3]} 23... Nd3
{[%clk 0:01:01.2]} 24. Kh1 {[%clk 0:01:26.4]} 24... N7xe5 {[%clk 0:00:58]} 25.
Bxe6 {[%clk 0:01:02.6]} 25... Rxe6 {[%clk 0:00:57.1]} 26. Nd4 {[%clk 0:01:00.6]}
26... Re7 {[%clk 0:00:54.4]} 27. Ne4 {[%clk 0:01:00.2]} 27... Nxf4 {[%clk
0:00:41.6]} 28. exf4 {[%clk 0:00:45.9]} 28... Nxg4 {[%clk 0:00:35.3]} 29. Rae1
{[%clk 0:00:41.5]} 29... Nh6 {[%clk 0:00:22]} 30. f5 {[%clk 0:00:28.3]} 30...
Bxd4 {[%clk 0:00:19.1]} 31. fxg6 {[%clk 0:00:28.3]} 31... hxg6 {[%clk
0:00:09.6]} 32. cxd4 {[%clk 0:00:28.4]} 32... Kg7 {[%clk 0:00:06.1]} 33. Nc5
{[%clk 0:00:16.6]} 33... Rae8 {[%clk 0:00:04.8]} 34. Rxe7 {[%clk 0:00:16.1]}
34... Rxe7 {[%clk 0:00:05.7]} 35. Qc4 {[%clk 0:00:16.8]} 35... Qb8 {[%clk
0:00:05.2]} 36. Qc3 {[%clk 0:00:16.8]} 36... Kg8 {[%clk 0:00:04]} 37. Qf3 {[%clk
0:00:14.7]} 37... Nf5 {[%clk 0:00:04.2]} 38. Ne4 {[%clk 0:00:15.2]} 38... Rxe4
{[%clk 0:00:02.8]} 39. Rg1 {[%clk 0:00:15.8]} 39... Re3 {[%clk 0:00:03]} 40.
Qxf5 {[%clk 0:00:15.1]} 40... Qe8 {[%clk 0:00:02.4]} 41. Qg4 {[%clk 0:00:14.6]}
41... Qe4+ {[%clk 0:00:02.5]} 42. Qxe4 {[%clk 0:00:15.3]} 42... Rxe4 {[%clk
0:00:03.4]} 43. d5 {[%clk 0:00:16.2]} 43... cxd5 {[%clk 0:00:03.4]} 44. Rc1
{[%clk 0:00:16.9]} 44... Rxa4 {[%clk 0:00:04]} 45. Rc7 {[%clk 0:00:17.2]} 45...
Rb4 {[%clk 0:00:03.8]} 46. Rd7 {[%clk 0:00:18.1]} 46... Rxb2 {[%clk 0:00:03.6]}
47. Rxd5 {[%clk 0:00:17.4]} 47... b5 {[%clk 0:00:04.3]} 48. h4 {[%clk
0:00:16.7]} 48... a4 {[%clk 0:00:04.8]} 49. h5 {[%clk 0:00:17.6]} 49... gxh5
{[%clk 0:00:05]} 50. Rd8+ {[%clk 0:00:18.5]} 50... Kg7 {[%clk 0:00:05.2]} 51.
Ra8 {[%clk 0:00:18.6]} 51... h4 {[%clk 0:00:04.9]} 52. Ra7 {[%clk 0:00:18.8]}
52... Rb3 {[%clk 0:00:05.8]} 53. Ra6 {[%clk 0:00:19.4]} 53... a3 {[%clk
0:00:06.5]} 54. Kg2 {[%clk 0:00:20.3]} 54... b4 {[%clk 0:00:07.2]} 55. Ra5
{[%clk 0:00:20.8]} 55... Rb2+ {[%clk 0:00:07.7]} 56. Kh3 {[%clk 0:00:21.7]}
56... a2 {[%clk 0:00:08.6]} 57. Rg5+ {[%clk 0:00:21.7]} 57... Kf6 {[%clk
0:00:08.7]} 58. Ra5 {[%clk 0:00:22.6]} 58... b3 {[%clk 0:00:09.2]} 59. Ra6+
{[%clk 0:00:23.5]} 59... Kg7 {[%clk 0:00:09.2]} 60. Ra5 {[%clk 0:00:24.4]} 60...
Rb1 {[%clk 0:00:09.8]} 61. Ra4 {[%clk 0:00:25.3]} 61... a1=Q {[%clk 0:00:09.6]}
62. Rg4+ {[%clk 0:00:26.2]} 62... Kf8 {[%clk 0:00:09.8]} 63. Rf4 {[%clk
0:00:26.8]} 63... Rh1+ {[%clk 0:00:10]} 64. Kg4 {[%clk 0:00:27.1]} 64... Qg1+
{[%clk 0:00:10.5]} 65. Kh5 {[%clk 0:00:28]} 65... Qc5+ {[%clk 0:00:10]} 66. Kh6
{[%clk 0:00:27.5]} 66... Qd6+ {[%clk 0:00:10.4]} 67. Kh7 {[%clk 0:00:27.8]}
67... Qxf4 {[%clk 0:00:09.6]} 68. Kh8 {[%clk 0:00:28.3]} 68... Qh6# {[%clk
0:00:10.5]} 0-1

[Event "*** Titled Tuesday Blitz"]
[Site "Chess.com"]
[Date "2020.10.27"]
[Round "7"]
[White "chessmachine14"]
[Black "venus02"]
[Result "0-1"]
[WhiteElo "2345"]
[BlackElo "2513"]
[TimeControl "180+1"]
[EndTime "11:20:05 PDT"]
[Termination "venus02 won on time"]

1. e4 {[%clk 0:03:00.9]} 1... c5 {[%clk 0:02:58]} 2. Nf3 {[%clk 0:02:53.7]} 2...
d6 {[%clk 0:02:56.9]} 3. d4 {[%clk 0:02:54.6]} 3... cxd4 {[%clk 0:02:57.4]} 4.
Nxd4 {[%clk 0:02:55.5]} 4... Nf6 {[%clk 0:02:57.8]} 5. Nc3 {[%clk 0:02:56.1]}
5... a6 {[%clk 0:02:58.2]} 6. Be3 {[%clk 0:02:56.3]} 6... e5 {[%clk 0:02:58]} 7.
Nb3 {[%clk 0:02:56.2]} 7... Be6 {[%clk 0:02:57.8]} 8. f3 {[%clk 0:02:56.6]} 8...
Be7 {[%clk 0:02:55]} 9. Qd2 {[%clk 0:02:56.4]} 9... h5 {[%clk 0:02:54.6]} 10. a4
{[%clk 0:02:51.2]} 10... Nbd7 {[%clk 0:02:52.7]} 11. a5 {[%clk 0:02:50.2]} 11...
Rc8 {[%clk 0:02:47.5]} 12. Be2 {[%clk 0:02:50.3]} 12... O-O {[%clk 0:02:41.9]}
13. O-O {[%clk 0:02:50]} 13... Nb8 {[%clk 0:02:34.8]} 14. Rfd1 {[%clk
0:02:22.9]} 14... Nc6 {[%clk 0:02:33.2]} 15. Bb6 {[%clk 0:02:22.7]} 15... Qe8
{[%clk 0:02:32]} 16. Nd5 {[%clk 0:01:42]} 16... Bxd5 {[%clk 0:02:28.4]} 17. exd5
{[%clk 0:01:42.2]} 17... Nb8 {[%clk 0:02:28.4]} 18. c4 {[%clk 0:01:37.2]} 18...
Nbd7 {[%clk 0:02:28]} 19. Bf2 {[%clk 0:01:32.7]} 19... Nh7 {[%clk 0:02:16.1]}
20. Bd3 {[%clk 0:01:32.7]} 20... f5 {[%clk 0:02:14]} 21. Re1 {[%clk 0:01:32.7]}
21... Qf7 {[%clk 0:02:09.1]} 22. Be2 {[%clk 0:01:19.9]} 22... Rfd8 {[%clk
0:01:49.7]} 23. f4 {[%clk 0:01:19.1]} 23... g5 {[%clk 0:01:44.1]} 24. Qd1 {[%clk
0:01:16.2]} 24... g4 {[%clk 0:01:40]} 25. fxe5 {[%clk 0:01:07.4]} 25... Nxe5
{[%clk 0:01:17.9]} 26. Nd4 {[%clk 0:01:05.1]} 26... Ng5 {[%clk 0:01:14.2]} 27.
Qb1 {[%clk 0:00:52.6]} 27... Ne4 {[%clk 0:01:11.5]} 28. Ne6 {[%clk 0:00:50.8]}
28... Re8 {[%clk 0:00:55.4]} 29. Bd4 {[%clk 0:00:50.7]} 29... Bf6 {[%clk
0:00:46.5]} 30. Bd3 {[%clk 0:00:50.5]} 30... Nd2 {[%clk 0:00:26.2]} 31. Qc2
{[%clk 0:00:44.8]} 31... Ndf3+ {[%clk 0:00:25.3]} 32. gxf3 {[%clk 0:00:41]}
32... Nxf3+ {[%clk 0:00:25.2]} 33. Kh1 {[%clk 0:00:39.1]} 33... Bxd4 {[%clk
0:00:14.4]} 34. Bxf5 {[%clk 0:00:38.6]} 34... Qf6 {[%clk 0:00:09.1]} 35. Re2
{[%clk 0:00:23.8]} 35... Rb8 {[%clk 0:00:06.9]} 36. Rf1 {[%clk 0:00:22.5]} 36...
Re7 {[%clk 0:00:05.8]} 37. Rg2 {[%clk 0:00:22.6]} 37... Kh8 {[%clk 0:00:04.5]}
38. Rxg4 {[%clk 0:00:18.8]} 38... hxg4 {[%clk 0:00:04.3]} 39. Bxg4 {[%clk
0:00:19]} 39... Rh7 {[%clk 0:00:04.4]} 40. Rxf3 {[%clk 0:00:18.5]} 40... Qe5
{[%clk 0:00:04.6]} 41. Rf1 {[%clk 0:00:15.4]} 41... Rg8 {[%clk 0:00:04.4]} 42.
Bf5 {[%clk 0:00:12.9]} 42... Rh5 {[%clk 0:00:04.4]} 43. Nxd4 {[%clk 0:00:09.4]}
43... Qxd4 {[%clk 0:00:03.7]} 44. Qe2 {[%clk 0:00:07]} 44... Qh4 {[%clk
0:00:02.5]} 45. Be6 {[%clk 0:00:05.2]} 45... Rd8 {[%clk 0:00:01.3]} 46. Qg2
{[%clk 0:00:03.9]} 46... Rh7 {[%clk 0:00:01.4]} 47. h3 {[%clk 0:00:02.7]} 47...
Rg7 {[%clk 0:00:01.7]} 48. Qf3 {[%clk 0:00:02.5]} 48... Qh6 {[%clk 0:00:01.8]}
49. Qf5 {[%clk 0:00:01.7]} 49... Re8 {[%clk 0:00:01.5]} 0-1